[Event "7th Uppsala Young Champions"]
[Site "Uppsala"]
[Date "2020.10.26"]
[Round "5.15"]
[White "Stalmach, Richard"]
[Black "Olsson, William"]
[Result "0-1"]
[ECO "D45"]
[WhiteElo "2296"]
[BlackElo "2192"]
[Annotator "RC"]
[PlyCount "114"]
[EventDate "2020.10.23"]
[EventType "swiss"]
[EventCountry "SWE"]
[SourceTitle "playchess.com"]
[Source "ChessBase"]
[SourceQuality "1"]
[TimeControl "5400+30"]

1. d4 {[%emt 0:00:00]} d5 {[%emt 0:00:00]} 2. c4 {[%emt 0:00:00]} e6 {[%emt 0:00:00]} 3. Nc3 {[%emt 0:00:13]} c6 {[%emt 0:00:00]} 4. e3 {[%emt 0:00:37]} Nf6 {[%emt 0:00:00]} 5. Nf3 {[%emt 0:00:18]} Nbd7 {[%emt 0:00:00]} 6. Qc2 {[%emt 0:00:28]} Bd6 {[%emt 0:00:00]} 7. g4 {[%emt 0:01:17]} h6 {[%emt 0:00:00]} 8. Bd2 {[%emt 0:00:25]} dxc4 {[%emt 0:01:02]} 9. Bxc4 {[%emt 0:00:37]} b5 {[%emt 0:00:07]} 10. Be2 {[%emt 0:02:58]} Bb7 {[%emt 0:00:19]} 11. O-O-O {[%emt 0:02:20]} Rc8 {[%emt 0:06:46]} 12. e4 {[%emt 0:12:29]} b4 {[%emt 0:00:47]} 13. e5 {[%emt 0:03:38]} bxc3 {[%emt 0:01:36]} 14. Bxc3 {[%emt 0:00:14]} Nd5 {[%emt 0:05:49]} 15. exd6 {[%emt 0:00:35]} c5 {[%emt 0:00:05]} 16. Rhe1 {[%emt 0:08:24]} Nxc3 {[%emt 0:06:22]} 17. bxc3 {[%emt 0:02:08]} O-O {[%emt 0:02:05]} 18. g5 {[%emt 0:21:30]} cxd4 {[%emt 0:15:22]} 19. Rxd4 {[%emt 0:00:56]} Qa5 {[%emt 0:00:17]} 20. Ra4 {[%emt 0:10:00]} Qc5 {[%emt 0:18:10]} 21. gxh6 {[%emt 0:01:22]} g6 {[%emt 0:00:18]} 22. Nd4 {[%emt 0:05:45]} e5 {[%emt 0:11:18]} 23. Bc4 {[%emt 0:05:52]} Qxd6 {[%emt 0:03:52]} 24. Be6 {[%emt 0:06:45]} Kh7 {[%emt 0:01:28]} 25. Bxd7 {[%emt 0:00:06]} Qxd7 {[%emt 0:00:09]} 26. Rxe5 {[%emt 0:00:10]} Rxc3 {[%emt 0:00:50]} 27. Qxc3 {[%emt 0:00:01]} Qxa4 {[%emt 0:00:24]} 28. Rc5 {[%emt 0:04:31]} Rg8 {[%emt 0:13:47]} 29. Ne6 {[%emt 0:05:41]} Qe8 {[%emt 0:05:55]} 30. Ng5+ {[%emt 0:01:18]} Kxh6 {[%emt 0:00:52]} 31. Re5 {[%emt 0:01:30]} Qd7 {[%emt 0:01:52]} 32. Rc5 {[%emt 0:03:12]} Rd8 {[%emt 0:01:39]} 33. Qh3+ {[%emt 0:00:37]} Qxh3 34. Nxh3 {[%emt 0:00:01]} Rc8 {[%emt 0:00:47]} 35. Rxc8 {[%emt 0:00:03]} Bxc8 {[%emt 0:00:08]} 36. Ng1 {[%emt 0:00:18]} Kg5 {[%emt 0:00:53]} 37. Kd2 {[%emt 0:00:01]} Kf4 {[%emt 0:00:12]} 38. Kd3 {[%emt 0:00:00]} Ba6+ {[%emt 0:01:40]} 39. Kd4 {[%emt 0:00:19]} Bf1 {[%emt 0:00:17]} 40. a4 {[%emt 0:00:50]} g5 {[%emt 0:01:30]} 41. a5 {[%emt 0:00:03]} g4 {[%emt 0:00:30]} 42. Kd5 {[%emt 0:00:18]} a6 {[%emt 0:01:37]} 43. Kd4 {[%emt 0:00:02]} Bg2 {[%emt 0:02:00]} 44. Kd3 {[%emt 0:01:00]} Ke5 {[%emt 0:00:38]} 45. Kc4 {[%emt 0:00:59]} Ke4 {[%emt 0:00:18]} 46. Kc3 {[%emt 0:01:44]} Bf1 {[%emt 0:00:05]} 47. Kb4 {[%emt 0:00:53]} Kd4 {[%emt 0:00:51]} 48. Kb3 {[%emt 0:00:48]} Kd3 {[%emt 0:00:27]} 49. Kb4 {[%emt 0:00:04]} Kd2 {[%emt 0:00:51]} 50. Kc5 {[%emt 0:00:10]} Ke1 {[%emt 0:00:30]} 51. f3 {[%emt 0:00:40]} g3 {[%emt 0:00:31]} 52. hxg3 {[%emt 0:00:12]} Kf2 {[%emt 0:00:05]} 53. g4 {[%emt 0:00:33]} Kxg1 {[%emt 0:00:14]} 54. f4 {[%emt 0:00:27]} Kf2 {[%emt 0:00:37]} 55. f5 {[%emt 0:00:03]} Bh3 {[%emt 0:00:06]} 56. Kb6 {[%emt 0:01:07]} Bxg4 {[%emt 0:00:06]} 57. Kxa6 {[%emt 0:00:04]} Bxf5 {[%emt 0:00:06]} 0-1

[Event "7th Uppsala Young Champions"]
[Site "Uppsala"]
[Date "2020.10.26"]
[Round "5.17"]
[White "Ostensson, Julia"]
[Black "Crevatin, Leo"]
[Result "1/2-1/2"]
[ECO "B04"]
[WhiteElo "1562"]
[BlackElo "2181"]
[Annotator "RC"]
[PlyCount "89"]
[EventDate "2020.10.23"]
[EventType "swiss"]
[EventCountry "SWE"]
[SourceTitle "playchess.com"]
[Source "ChessBase"]
[SourceQuality "1"]
[TimeControl "5400+30"]

1. e4 {[%emt 0:00:00]} Nf6 {[%emt 0:00:00]} 2. e5 {[%emt 0:04:26]} Nd5 {[%emt 0:00:00]} 3. c4 {[%emt 0:10:58]} Nb6 {[%emt 0:00:00]} 4. d4 {[%emt 0:01:18]} d6 {[%emt 0:00:00]} 5. exd6 {[%emt 0:03:02]} cxd6 {[%emt 0:00:07]} 6. Nf3 {[%emt 0:11:38]} g6 {[%emt 0:00:08]} 7. Nc3 {[%emt 0:01:48]} Bg7 {[%emt 0:00:08]} 8. Be2 {[%emt 0:05:47]} O-O {[%emt 0:00:38]} 9. Be3 {[%emt 0:02:14]} Nc6 {[%emt 0:03:37]} 10. d5 {[%emt 0:10:12]} Ne5 {[%emt 0:06:50]} 11. Nxe5 {[%emt 0:00:53]} dxe5 {[%emt 0:00:54]} 12. O-O {[%emt 0:02:03]} f5 {[%emt 0:01:13]} 13. f3 {[%emt 0:16:19]} Nd7 {[%emt 0:06:02]} 14. Rc1 {[%emt 0:01:07]} Nf6 {[%emt 0:01:20]} 15. b4 {[%emt 0:01:50]} Bd7 {[%emt 0:08:14]} 16. Qb3 {[%emt 0:01:14]} f4 {[%emt 0:01:28]} 17. Bf2 {[%emt 0:00:16]} g5 {[%emt 0:00:08]} 18. c5 {[%emt 0:00:49]} Kh8 {[%emt 0:00:26]} 19. Rfd1 {[%emt 0:00:24]} g4 {[%emt 0:02:13]} 20. b5 {[%emt 0:01:25]} gxf3 {[%emt 0:01:07]} 21. Bxf3 {[%emt 0:00:38]} Bg4 {[%emt 0:02:10]} 22. Bxg4 {[%emt 0:02:09]} Nxg4 {[%emt 0:00:01]} 23. Ne4 {[%emt 0:02:46]} Qe8 {[%emt 0:01:05]} 24. Rc3 {[%emt 0:01:04]} Qg6 {[%emt 0:00:46]} 25. Qc2 {[%emt 0:01:06]} f3 {[%emt 0:04:13]} 26. Bg3 {[%emt 0:08:36]} fxg2 {[%emt 0:02:04]} 27. Qxg2 {[%emt 0:01:19]} Bh6 {[%emt 0:00:44]} 28. h3 {[%emt 0:02:32]} Nf6 {[%emt 0:03:18]} 29. Bxe5 {[%emt 0:00:47]} Qh5 {[%emt 0:00:21]} 30. Bxf6+ {[%emt 0:01:10]} Rxf6 {[%emt 0:00:16]} 31. Rdd3 {[%emt 0:00:48]} Rg8 {[%emt 0:00:54]} 32. Rg3 {[%emt 0:03:26]} Qd1+ {[%emt 0:00:40]} 33. Kh2 {[%emt 0:00:03]} Rxg3 {[%emt 0:03:15]} 34. Rxg3 {[%emt 0:01:45]} Bf4 {[%emt 0:01:40]} 35. Nxf6 {[%emt 0:00:10]} exf6 {[%emt 0:00:01]} 36. d6 {[%emt 0:01:06]} h5 {[%emt 0:00:46]} 37. Qf2 {[%emt 0:00:24]} Bxg3+ {[%emt 0:01:32]} 38. Kxg3 {[%emt 0:00:05]} Kg7 {[%emt 0:00:18]} 39. Qe3 {[%emt 0:00:35]} Qd5 {[%emt 0:00:47]} 40. Qe7+ {[%emt 0:00:54]} Kg6 {[%emt 0:00:06]} 41. Qe8+ {[%emt 0:00:42]} Kg7 {[%emt 0:00:49]} 42. Qe7+ {[%emt 0:00:35]} Kg6 {[%emt 0:00:07]} 43. Qe8+ {[%emt 0:00:29]} Kg7 {[%emt 0:00:45]} 44. Qe7+ {[%emt 0:00:33]} Kg6 {[%emt 0:00:07]} 45. Qe8+ {[%emt 0:00:20]} 1/2-1/2

[Event "7th Uppsala Young Champions"]
[Site "Uppsala"]
[Date "2020.10.26"]
[Round "5.18"]
[White "Ostlund, Joar"]
[Black "Grahn, Vidar"]
[Result "1-0"]
[ECO "E94"]
[WhiteElo "2106"]
[BlackElo "1864"]
[Annotator "RC"]
[PlyCount "89"]
[EventDate "2020.10.23"]
[EventType "swiss"]
[EventCountry "SWE"]
[SourceTitle "playchess.com"]
[Source "ChessBase"]
[SourceQuality "1"]
[TimeControl "5400+30"]

1. d4 {[%emt 0:00:00]} Nf6 {[%emt 0:00:00]} 2. c4 {[%emt 0:00:00]} g6 {[%emt 0:00:00]} 3. Nc3 {[%emt 0:00:00]} Bg7 {[%emt 0:00:00]} 4. e4 {[%emt 0:00:00]} d6 {[%emt 0:00:06]} 5. Nf3 {[%emt 0:00:05]} O-O {[%emt 0:00:10]} 6. Be2 {[%emt 0:00:10]} e5 {[%emt 0:00:21]} 7. O-O {[%emt 0:00:10]} Nbd7 {[%emt 0:00:10]} 8. Be3 {[%emt 0:00:22]} Ng4 {[%emt 0:01:18]} 9. Bg5 {[%emt 0:00:17]} f6 {[%emt 0:00:06]} 10. Bh4 {[%emt 0:00:18]} Nh6 {[%emt 0:02:13]} 11. Rc1 {[%emt 0:04:17]} Nf7 {[%emt 0:02:25]} 12. b4 {[%emt 0:04:51]} h5 {[%emt 0:02:46]} 13. Bg3 {[%emt 0:03:45]} Bh6 {[%emt 0:08:36]} 14. Rc2 {[%emt 0:00:40]} Bf4 {[%emt 0:02:04]} 15. Bxf4 {[%emt 0:20:20]} exf4 {[%emt 0:00:11]} 16. Nh4 {[%emt 0:07:11]} Kg7 {[%emt 0:02:37]} 17. Nd5 {[%emt 0:01:26]} f5 {[%emt 0:05:55]} 18. Nxg6 {[%emt 0:13:32]} Kxg6 {[%emt 0:00:15]} 19. Nxf4+ {[%emt 0:00:16]} Kh6 {[%emt 0:01:12]} 20. Ne6 {[%emt 0:05:01]} Qh4 {[%emt 0:02:30]} 21. exf5 {[%emt 0:09:41]} Rg8 {[%emt 0:03:48]} 22. g3 {[%emt 0:00:25]} Nf6 {[%emt 0:02:29]} 23. Qd2+ {[%emt 0:00:27]} Rg5 {[%emt 0:02:22]} 24. Nxg5 {[%emt 0:06:59]} Qxg5 {[%emt 0:00:31]} 25. Bd3 {[%emt 0:01:14]} Qxd2 {[%emt 0:02:52]} 26. Rxd2 {[%emt 0:00:05]} Ng5 {[%emt 0:00:10]} 27. Kg2 {[%emt 0:02:27]} Nge4 {[%emt 0:00:41]} 28. Re2 {[%emt 0:00:21]} Bxf5 {[%emt 0:03:02]} 29. Re3 {[%emt 0:06:00]} d5 {[%emt 0:14:37]} 30. cxd5 {[%emt 0:00:35]} Nxd5 {[%emt 0:00:08]} 31. Rxe4 {[%emt 0:00:45]} Bxe4+ {[%emt 0:00:14]} 32. Bxe4 {[%emt 0:00:06]} Nxb4 {[%emt 0:00:52]} 33. a3 {[%emt 0:00:56]} Na2 {[%emt 0:03:08]} 34. Ra1 {[%emt 0:14:18]} Nc3 {[%emt 0:00:50]} 35. Bxb7 {[%emt 0:00:00]} Rd8 {[%emt 0:00:10]} 36. Rc1 {[%emt 0:00:00]} Nb5 {[%emt 0:00:29]} 37. a4 {[%emt 0:00:00]} Nxd4 {[%emt 0:02:58]} 38. Rxc7 {[%emt 0:00:00]} a5 {[%emt 0:00:50]} 39. Be4 {[%emt 0:00:00]} Re8 {[%emt 0:01:50]} 40. Bd3 {[%emt 0:00:00]} Rh8 {[%emt 0:03:25]} 41. h4 {[%emt 0:00:00]} Nb3 {[%emt 0:00:29]} 42. Ra7 {[%emt 0:00:00]} Nc5 {[%emt 0:00:15]} 43. Bc2 {[%emt 0:00:00]} Ne6 {[%emt 0:00:24]} 44. Ra6 {[%emt 0:00:00]} Re8 {[%emt 0:00:05]} 45. Bb3 {[%emt 0:00:00]} 1-0

[Event "7th Uppsala Young Champions"]
[Site "Uppsala"]
[Date "2020.10.26"]
[Round "5.20"]
[White "Buchert, Matthaus"]
[Black "Ruzic, Pia Marie"]
[Result "1-0"]
[ECO "C10"]
[WhiteElo "1427"]
[BlackElo "1929"]
[Annotator "RC"]
[PlyCount "109"]
[EventDate "2020.10.23"]
[EventType "swiss"]
[EventCountry "SWE"]
[SourceTitle "playchess.com"]
[Source "ChessBase"]
[SourceQuality "1"]
[TimeControl "5400+30"]

1. e4 {[%emt 0:00:00]} e6 {[%emt 0:00:00]} 2. d4 {[%emt 0:00:00]} d5 {[%emt 0:00:00]} 3. Nd2 {[%emt 0:00:00]} dxe4 {[%emt 0:00:02]} 4. Nxe4 {[%emt 0:00:00]} Nd7 {[%emt 0:00:08]} 5. Bd3 {[%emt 0:02:26]} Ngf6 {[%emt 0:00:39]} 6. Qe2 {[%emt 0:02:17]} Nxe4 {[%emt 0:06:13]} 7. Bxe4 {[%emt 0:00:31]} c5 {[%emt 0:02:38]} 8. Nf3 {[%emt 0:22:36]} cxd4 {[%emt 0:08:34]} 9. Bg5 {[%emt 0:06:39]} Bb4+ {[%emt 0:07:51]} 10. Bd2 {[%emt 0:15:44]} Bxd2+ {[%emt 0:00:26]} 11. Qxd2 {[%emt 0:00:28]} Nc5 {[%emt 0:03:39]} 12. Bd3 {[%emt 0:01:57]} O-O {[%emt 0:00:59]} 13. O-O-O {[%emt 0:08:41]} Nxd3+ {[%emt 0:02:16]} 14. Qxd3 {[%emt 0:01:27]} Qa5 {[%emt 0:01:52]} 15. Kb1 {[%emt 0:07:47]} b6 {[%emt 0:16:59]} 16. Qxd4 {[%emt 0:11:23]} Bb7 {[%emt 0:02:10]} 17. Ne5 {[%emt 0:08:18]} Rac8 {[%emt 0:01:46]} 18. Qf4 {[%emt 0:02:18]} f6 {[%emt 0:05:13]} 19. Nc4 {[%emt 0:03:38]} Qc5 {[%emt 0:01:19]} 20. Ne3 {[%emt 0:01:08]} Rc7 {[%emt 0:02:34]} 21. Rd2 {[%emt 0:01:00]} Rfc8 {[%emt 0:01:29]} 22. Rhd1 {[%emt 0:00:20]} Qe7 {[%emt 0:00:45]} 23. f3 {[%emt 0:01:24]} b5 {[%emt 0:02:58]} 24. g4 {[%emt 0:01:19]} a5 {[%emt 0:04:00]} 25. h4 {[%emt 0:00:31]} a4 {[%emt 0:01:03]} 26. g5 {[%emt 0:00:31]} fxg5 {[%emt 0:06:12]} 27. hxg5 {[%emt 0:00:28]} Rf8 {[%emt 0:00:05]} 28. Qh2 {[%emt 0:00:36]} Bxf3 {[%emt 0:01:02]} 29. Rf1 {[%emt 0:00:26]} Rcc8 {[%emt 0:02:09]} 30. Rdf2 {[%emt 0:00:32]} Bc6 {[%emt 0:02:17]} 31. g6 {[%emt 0:00:29]} h6 {[%emt 0:00:29]} 32. Rf7 {[%emt 0:00:23]} Qc5 {[%emt 0:05:08]} 33. Qf4 {[%emt 0:00:41]} Rfd8 {[%emt 0:03:08]} 34. Ng4 {[%emt 0:00:26]} Qf5 {[%emt 0:07:08]} 35. Rxf5 {[%emt 0:00:27]} exf5 {[%emt 0:00:01]} 36. Ne3 {[%emt 0:00:34]} Be4 {[%emt 0:00:40]} 37. Qe5 {[%emt 0:00:25]} Rc6 {[%emt 0:01:59]} 38. Qxb5 {[%emt 0:00:22]} f4 {[%emt 0:00:05]} 39. Rxf4 {[%emt 0:00:41]} Bxc2+ {[%emt 0:00:43]} 40. Ka1 {[%emt 0:00:29]} Rxg6 {[%emt 0:00:02]} 41. Qf1 {[%emt 0:00:32]} Bd3 {[%emt 0:00:49]} 42. Qc1 {[%emt 0:00:25]} Rgd6 {[%emt 0:00:17]} 43. a3 {[%emt 0:00:31]} Be2 {[%emt 0:00:41]} 44. Qc3 {[%emt 0:00:24]} Rd3 {[%emt 0:00:46]} 45. Qc4+ {[%emt 0:00:43]} Kh8 {[%emt 0:03:16]} 46. Qc5 {[%emt 0:00:16]} Re8 {[%emt 0:00:00]} 47. Rf8+ {[%emt 0:00:20]} Rxf8 {[%emt 0:00:00]} 48. Qxf8+ {[%emt 0:00:07]} Kh7 {[%emt 0:00:00]} 49. Qf5+ {[%emt 0:00:10]} Kh8 {[%emt 0:00:00]} 50. Qf8+ {[%emt 0:00:52]} Kh7 {[%emt 0:00:00]} 51. Qf5+ {[%emt 0:00:09]} Kh8 {[%emt 0:00:00]} 52. Qe4 {[%emt 0:00:13]} Rb3 {[%emt 0:03:30]} 53. Nf5 {[%emt 0:00:32]} Bb5 {[%emt 0:00:00]} 54. Qg4 {[%emt 0:00:44]} g5 {[%emt 0:00:00]} 55. Qd4+ {[%emt 0:00:17]} 1-0

[Event "7th Uppsala Young Champions"]
[Site "Uppsala"]
[Date "2020.10.26"]
[Round "6.1"]
[White "Sorensen, Hampus"]
[Black "Pantzar, Milton"]
[Result "1/2-1/2"]
[ECO "D30"]
[WhiteElo "2393"]
[BlackElo "2410"]
[Annotator "NA"]
[PlyCount "85"]
[EventDate "2020.10.23"]
[EventType "swiss"]
[EventCountry "SWE"]
[SourceTitle "playchess.com"]
[Source "ChessBase"]
[SourceQuality "1"]
[TimeControl "5400+30"]

{[%evp 8,67,42,27,27,27,34,14,17,20,21,32767,13,22,31,15,17,24,28,32,58,41,51,36,42,32767,32767,32767,45,83,67,66,62,72,87,54,49,77,91,98,95,77,89,90,84,99,106,111,117,79,97,94,114,82,85,96,94,0,32767,0,0,0]} 1. d4 {[%emt 0:00:00]} d5 {[%emt 0:00:00]} 2. c4 {[%emt 0:00:15]} e6 {[%emt 0:00:00]} 3. Nf3 {[%emt 0:00:10]} a6 {[%emt 0:00:05]} 4. Bg5 {[%emt 0:02:02]} Be7 {[%emt 0:00:09]} 5. Bxe7 {[%emt 0:00:33]} Qxe7 {[%emt 0:00:08]} 6. Nbd2 {[%emt 0:02:28] D30: Queen's Gambit Declined: Systems without Nc3.} Nf6 {[%emt 0:00:24]} 7. g3 {[%emt 0:01:12]} O-O {[%emt 0:00:30]} 8. Bg2 {[%emt 0:00:30]} b6 {[%emt 0:00:17]} 9. O-O {[%emt 0:01:08]} Bb7 {[%emt 0:00:24]} 10. Rc1 {[%emt 0:03:27] [#]} a5 $146 {[%emt 0:01:29]} ({Predecessor:} 10... Rc8 11. Ne5 Nbd7 12. cxd5 Nxe5 13. dxe5 Nxd5 14. a3 Qe8 15. Qc2 Rab8 16. Rfd1 h6 {1-0 (56) Jumabayev,R (2633)-Dhulipalla,B (2419) Biel 2019}) 11. Ne5 {[%emt 0:06:59]} Rd8 {[%emt 0:12:07]} 12. c5 {[%emt 0:06:08]} bxc5 {[%emt 0:12:01]} 13. Rxc5 {[%emt 0:00:22]} a4 {[%emt 0:03:30]} 14. Qc2 {[%emt 0:08:01]} c6 {[%emt 0:08:14]} 15. Rc3 {[%emt 0:04:36]} Nfd7 {[%emt 0:01:19]} 16. Nd3 {[%emt 0:14:05]} Na6 {[%emt 0:09:27]} 17. b4 {[%emt 0:07:23]} e5 {[%emt 0:12:55]} 18. dxe5 {[%emt 0:05:36]} Nxe5 {[%emt 0:00:15]} 19. Nxe5 {[%emt 0:01:28]} Qxe5 {[%emt 0:00:11]} 20. Nf3 {[%emt 0:01:06]} Qf6 {[%emt 0:04:14]} 21. a3 {[%emt 0:02:12]} Nc7 {[%emt 0:00:25]} 22. Rd1 {[%emt 0:03:38]} Nb5 {[%emt 0:01:37] [#]} 23. Rcd3 $1 {[%emt 0:00:45]} Re8 {[%emt 0:04:27]} 24. Nd4 {[%emt 0:02:33]} Nxd4 {[%emt 0:01:11]} 25. Rxd4 {[%emt 0:00:15]} Ba6 {[%emt 0:00:33]} 26. e3 {[%emt 0:03:29]} g6 {[%emt 0:03:54]} 27. h4 {[%emt 0:00:50]} Bc4 {[%emt 0:02:28]} 28. R1d2 {[%emt 0:01:19]} h5 {[%emt 0:01:57]} 29. Qc3 {[%emt 0:01:01]} Bb5 {[%emt 0:02:04]} 30. Kh2 {[%emt 0:04:51]} Rab8 {[%emt 0:02:05]} 31. Qc2 {[%emt 0:01:35]} Kg7 {[%emt 0:00:21]} 32. e4 {[%emt 0:01:20]} (32. Qc1 $16) 32... dxe4 {[%emt 0:00:26]} 33. Bxe4 {[%emt 0:00:20]} Re6 {[%emt 0:02:51]} 34. Bg2 $11 {[%emt 0:01:36]} Rbe8 {[%emt 0:02:22]} 35. Rf4 {[%emt 0:00:29]} Qa1 {[%emt 0:00:59]} 36. Rf3 {[%emt 0:06:23]} Re2 {[%emt 0:02:21]} 37. Rxe2 {[%emt 0:01:13]} Rxe2 {[%emt 0:00:06]} 38. Qc5 {[%emt 0:00:10]} Qe5 {[%emt 0:04:49]} 39. Qa7 {[%emt 0:02:49]} Qe7 {[%emt 0:00:32]} 40. Qd4+ {[%emt 0:00:21]} Qe5 {[%emt 0:00:19]} 41. Qa7 {[%emt 0:01:15]} Qe7 {[%emt 0:00:05]} 42. Qd4+ {[%emt 0:01:11]} Qe5 {[%emt 0:00:09]} 43. Qa7 {[%emt 0:00:40]} 1/2-1/2

[Event "7th Uppsala Young Champions"]
[Site "Uppsala"]
[Date "2020.10.26"]
[Round "6.3"]
[White "Soderstrom, Adrian"]
[Black "Storme, Isak"]
[Result "1/2-1/2"]
[ECO "D86"]
[WhiteElo "2168"]
[BlackElo "2393"]
[Annotator "NA"]
[PlyCount "65"]
[EventDate "2020.10.23"]
[EventType "swiss"]
[EventCountry "SWE"]
[SourceTitle "playchess.com"]
[Source "ChessBase"]
[SourceQuality "1"]
[TimeControl "5400+30"]

{[%evp 8,57,37,36,42,42,32767,20,15,32767,12,16,30,25,17,26,54,84,60,85,64,57,45,32767,32767,32767,32767,32767,32767,32767,32767,241,32767,32767,253,197,32767,302,497,593,613,68,58,32767,32767,-94,-45,-104,-89,-112,-42,-155]} 1. d4 {[%emt 0:00:45]} Nf6 {[%emt 0:00:00]} 2. c4 {[%emt 0:00:05]} g6 {[%emt 0:00:00]} 3. Nc3 {[%emt 0:00:04]} d5 {[%emt 0:00:00]} 4. cxd5 {[%emt 0:00:12]} Nxd5 {[%emt 0:00:05]} 5. e4 {[%emt 0:00:09]} Nxc3 {[%emt 0:00:11]} 6. bxc3 {[%emt 0:00:02]} Bg7 {[%emt 0:00:12]} 7. Bc4 {[%emt 0:00:12]} O-O {[%emt 0:00:07]} 8. Ne2 {[%emt 0:00:14]} Nc6 {[%emt 0:00:16]} 9. Be3 {[%emt 0:01:34]} b6 {[%emt 0:00:11]} 10. h4 {[%emt 0:02:59] [#] D86: Exchange Grünfeld: Classical Line (7 Bc4).} h5 $146 {[%emt 0:03:35]} ({Predecessor:} 10... e5 11. Bd5 Bb7 12. h5 Na5 13. Bxb7 Nxb7 14. hxg6 hxg6 15. Qc1 Re8 16. Bh6 Bf6 17. d5 c6 {½-½ (39) Tarlabasi,E (2117)-Unat,C (2047) Ankara 2018}) 11. e5 {[%emt 0:11:03]} Na5 {[%emt 0:01:18]} 12. Bd3 $1 {[%emt 0:00:30]} c5 {[%emt 0:17:01]} 13. Nf4 {[%emt 0:15:51]} cxd4 {[%emt 0:00:24]} 14. cxd4 {[%emt 0:00:39]} Bg4 {[%emt 0:13:12]} 15. f3 {[%emt 0:01:37]} Bd7 {[%emt 0:00:32]} 16. g4 {[%emt 0:12:08]} hxg4 {[%emt 0:00:39]} 17. h5 {[%emt 0:04:41]} Bc6 {[%emt 0:04:07]} 18. hxg6 {[%emt 0:03:41]} fxg6 {[%emt 0:00:15]} 19. Bxg6 {[%emt 0:19:53]} Rxf4 {[%emt 0:04:36]} 20. Bh7+ {[%emt 0:00:06]} Kf8 {[%emt 0:00:34]} 21. Bxf4 {[%emt 0:01:09]} Bxf3 {[%emt 0:00:31]} 22. Qd3 {[%emt 0:00:52]} e6 $2 {[%emt 0:00:41]} ({Weaker is} 22... Bxh1 23. Qf5+ {[%mdl 64] Double Attack} Bf6 24. Bh6+ Kf7 25. e6+ Ke8 26. Qh5#) (22... Qd5) 23. O-O {[%emt 0:00:40]} Nc6 {[%emt 0:08:19]} 24. Rad1 $2 {[%emt 0:10:07]} ({Better is} 24. Qa3+ $18 Kf7 25. Rxf3 gxf3 26. Qxf3 Nxd4 27. Qb7+ Kf8 28. Rf1 (28. Bg6 Kg8 $18)) 24... Qh4 {[%emt 0:02:26]} 25. Bh2 {[%emt 0:01:25]} Qh3 {[%emt 0:01:34]} 26. Rd2 {[%emt 0:00:25]} (26. Rf2 $1 $11 Rd8 27. Qa3+ Kf7 28. Be4 Nxe5 29. Rdf1 (29. Qxa7+ Kg8 $11)) 26... Rd8 {[%emt 0:08:44]} 27. Be4 {[%emt 0:03:35]} (27. Rdf2 $15 Nxe5 {[%mdl 64] Pin} 28. Qa3+ (28. Bxe5 $2 {gets mated.} Qh1#) 28... Ke8 29. dxe5 Qxh7 30. Qa4+ Rd7 31. Rc1) 27... Nxd4 {[%emt 0:06:23]} ({Not} 27... Rxd4 28. Bxf3 Rxd3 29. Rxd3 $16) 28. Bxf3 $1 {[%emt 0:00:30]} gxf3 {[%emt 0:00:21]} 29. Qe4 $17 {[%emt 0:02:24]} (29. Rdf2 $142 Kg8 30. Kh1 Bxe5 31. Re1) 29... Kg8 {[%emt 0:06:37]} 30. Rff2 {[%emt 0:00:56]} Bf8 {[%emt 0:09:01]} 31. Qg6+ {[%emt 0:04:05]} Bg7 {[%emt 0:00:09]} 32. Qe4 {[%emt 0:00:01]} Bf8 {[%emt 0:03:02]} 33. Qg6+ {[%emt 0:01:53]} 1/2-1/2

[Event "7th Uppsala Young Champions"]
[Site "Uppsala"]
[Date "2020.10.26"]
[Round "6.4"]
[White "Stefansson, Vignir Vatnar"]
[Black "Wernberg, Hugo"]
[Result "1-0"]
[ECO "D31"]
[WhiteElo "2313"]
[BlackElo "2211"]
[Annotator "ChessBase"]
[PlyCount "173"]
[EventDate "2020.10.23"]
[EventType "swiss"]
[EventCountry "SWE"]
[SourceTitle "playchess.com"]
[Source "ChessBase"]
[SourceQuality "1"]
[TimeControl "5400+30"]

1. d4 d5 2. c4 c6 3. Nc3 Nf6 4. e3 e6 5. Rb1 Be7 6. Nf3 O-O 7. Bd2 b6 8. b4 Ba6 9. b5 Bb7 10. bxc6 Nxc6 11. c5 Nd7 12. Na4 Qc7 13. cxb6 axb6 14. Nc3 Nb4 15. Rc1 Qb8 16. a4 Rc8 17. Be2 e5 18. dxe5 Nxe5 19. O-O Nc4 20. Nxd5 Bxd5 21. Bxb4 Bxf3 22. Bxf3 Bxb4 23. Bxa8 Qxa8 24. Qb3 Nd2 25. Qxb4 Nxf1 26. Rxc8+ Qxc8 27. Kxf1 h5 28. g3 g6 29. Kg2 Qc6+ 30. e4 Qc2 31. Qd4 Qb3 32. h3 Qe6 33. Qd5 Qe8 34. Qc4 Qd7 35. e5 Qb7+ 36. Kh2 Qf3 37. Qd4 Qb3 38. Kg2 Qc2 39. Qd8+ Kg7 40. Qd4 Kg8 41. Kg1 Qc1+ 42. Kh2 Qc6 43. Kg1 Qc1+ 44. Kg2 Qc6+ 45. Kh2 Kh7 46. Qf4 Kg8 47. g4 hxg4 48. hxg4 Qd5 49. Kg3 Qd3+ 50. f3 Qb3 51. Qe4 Kg7 52. Qd4 Kh7 53. Kf4 Qe6 54. Kg3 Qb3 55. Qe4 Kg7 56. Qc6 Kg8 57. Kh4 Qe3 58. Qf6 Qh6+ 59. Kg3 Qe3 60. Qf4 Qe1+ 61. Kg2 Qe2+ 62. Kh3 Qe1 63. Qd4 Qh1+ 64. Kg3 Qe1+ 65. Kf4 Qc1+ 66. Ke4 Qc6+ 67. Ke3 Kh7 68. Qe4 Qe6 69. Kd4 Qb3 70. Qc6 Qd1+ 71. Kc4 Qf1+ 72. Kd4 Qd1+ 73. Ke3 Qg1+ 74. Ke4 Qb1+ 75. Kf4 Qa2 76. Kg5 Kg7 77. Qf6+ Kh7 78. f4 Qb3 79. e6 Qd5+ 80. Qe5 Qd8+ 81. e7 Qe8 82. Kf6 Qc6+ 83. Kxf7 Qc4+ 84. Kf6 Qc6+ 85. Kg5 Qe8 86. Qf6 b5 87. Qf8 {[%emt 2:12:51]} 1-0